bitfinex/quotes_BTCUSD_20250614
["timestamp","ask_amount","ask_price","bid_price","bid_amount"]
[1749883102985,2.79996288,105280.0,105270.0,9.044e-05]
[1749883109239,2.79996975,105280.0,105270.0,9.044e-05]
[1749883120583,2.77776975,105280.0,105270.0,9.044e-05]
[1749883121283,2.75686975,105280.0,105270.0,9.044e-05]
[1749883121493,2.85301897,105280.0,105270.0,9.044e-05]
[1749883126386,2.65805897,105280.0,105270.0,9.044e-05]
[1749883126587,1.68753922,105280.0,105270.0,9.044e-05]
[1749883126796,2.28376206,105280.0,105270.0,0.01789857]
[1749883126992,2.28376206,105280.0,105270.0,0.09351651]
[1749883127171,2.2610662,105280.0,105270.0,0.09351564]
[1749883127369,1.5400696,105280.0,105270.0,0.28350327]
[1749883127583,2.01952292,105280.0,105270.0,0.27519532]
[1749883127787,2.01952292,105280.0,105270.0,0.29300194]
[1749883128029,2.01952292,105280.0,105270.0,0.28350256]
[1749883128435,2.01952292,105280.0,105270.0,0.09351491]
[1749883129098,2.01952292,105280.0,105270.0,0.09351486]
[1749883130266,2.01952292,105280.0,105270.0,0.07570838]
[1749883130472,2.01952292,105280.0,105270.0,0.01790114]
[1749883130852,2.01952292,105280.0,105270.0,9.044e-05]
[1749883131077,2.01952292,105280.0,105270.0,0.01790114]
[1749883133154,2.01952292,105280.0,105270.0,9.044e-05]
[1749883133339,2.01952292,105280.0,105270.0,0.01790114]
[1749883134013,2.01952292,105280.0,105270.0,0.02119044]
[1749883134215,2.01952292,105280.0,105270.0,0.06020114]
[1749883134741,2.01952292,105280.0,105270.0,0.04239044]
[1749883134951,2.01952292,105280.0,105270.0,0.06020114]
[1749883135154,2.01952292,105280.0,105270.0,0.04239044]
[1749883135567,2.01952292,105280.0,105270.0,0.06020114]
[1749883135767,2.01952292,105280.0,105270.0,0.06020115]
[1749883135965,2.01952292,105280.0,105270.0,0.04239044]
[1749883136173,2.01952292,105280.0,105270.0,0.06020115]
[1749883136392,2.01952292,105280.0,105270.0,0.04239044]
[1749883136599,2.01952292,105280.0,105270.0,0.06020115]
[1749883137233,2.01952292,105280.0,105270.0,0.04239044]
[1749883137578,2.01952292,105280.0,105270.0,0.06020115]
[1749883138399,2.01952292,105280.0,105270.0,0.04239044]
[1749883138640,2.01952292,105280.0,105270.0,0.06020115]
[1749883138841,2.01952292,105280.0,105270.0,0.04239044]
[1749883139054,2.01952292,105280.0,105270.0,0.06020115]
[1749883140720,1.53042292,105280.0,105270.0,0.06020115]
[1749883141501,1.53038292,105280.0,105270.0,0.06020115]
[1749883142197,1.53038292,105280.0,105270.0,0.04239044]
[1749883142968,1.53038292,105280.0,105270.0,0.06020115]
[1749883143835,1.53038292,105280.0,105270.0,0.06020499]
[1749883144251,1.53038292,105280.0,105270.0,0.04239044]
[1749883144654,1.53038292,105280.0,105270.0,0.06020499]
[1749883145169,1.53038292,105280.0,105270.0,0.04239044]
[1749883145854,1.53038292,105280.0,105270.0,0.06020499]
[1749883146281,1.53038292,105280.0,105270.0,0.04239044]
[1749883147225,1.53038292,105280.0,105270.0,0.06020498]
[1749883147428,1.53038292,105280.0,105270.0,0.06020499]
[1749883147648,1.53038292,105280.0,105270.0,0.04239044]
[1749883147860,1.53038292,105280.0,105270.0,0.06020499]
[1749883148084,1.53038292,105280.0,105270.0,0.04239044]
[1749883148296,1.53038292,105280.0,105270.0,0.06020499]
[1749883148725,1.19038292,105280.0,105270.0,0.06020499]
[1749883149979,1.19038292,105280.0,105270.0,0.04239044]
[1749883150380,1.19038292,105280.0,105270.0,0.06015208]
[1749883150970,1.19038292,105280.0,105270.0,0.04239044]
[1749883151177,0.76046808,105280.0,105270.0,0.06015208]
[1749883151394,1.19038292,105280.0,105270.0,0.06015208]
[1749883152765,1.19038292,105280.0,105270.0,0.04239044]
[1749883152981,1.19038292,105280.0,105270.0,0.06015208]
[1749883153206,1.19038292,105280.0,105270.0,0.04239044]
[1749883154037,1.19038292,105280.0,105270.0,0.06015208]
[1749883155321,1.62029776,105280.0,105270.0,0.06015213]
[1749883155527,1.62029776,105280.0,105270.0,0.04239044]
[1749883155740,1.62029776,105280.0,105270.0,0.06015214]
[1749883155950,1.62029776,105280.0,105270.0,0.04239044]
[1749883156366,1.62029776,105280.0,105270.0,0.06015214]
[1749883156564,1.62029776,105280.0,105270.0,0.04239044]
[1749883156748,1.62029776,105280.0,105270.0,0.06020505]
[1749883158941,1.62029776,105280.0,105270.0,0.04239044]
[1749883159147,1.62029776,105280.0,105270.0,0.06020505]
[1749883160143,1.71644698,105280.0,105270.0,0.01790505]
[1749883160350,1.71644698,105280.0,105270.0,0.01790515]
[1749883160541,1.71644698,105280.0,105270.0,0.01790517]
[1749883160736,1.71644698,105280.0,105270.0,9.044e-05]
[1749883160936,1.71644698,105280.0,105270.0,0.01790517]
[1749883161561,1.71644698,105280.0,105270.0,9.044e-05]
[1749883161702,1.71644698,105280.0,105270.0,0.01790517]
[1749883162101,1.71644698,105280.0,105270.0,9.044e-05]
[1749883162717,1.71644698,105280.0,105270.0,0.01790517]
[1749883163117,1.71644698,105280.0,105270.0,0.0179057]
[1749883163992,1.52647738,105280.0,105270.0,0.0179057]
[1749883164199,1.71644698,105280.0,105270.0,0.0179057]
[1749883164412,1.71644698,105280.0,105270.0,0.01789349]
[1749883165038,1.71644698,105280.0,105270.0,9.044e-05]
[1749883165250,1.71644698,105280.0,105270.0,0.01789349]
[1749883166269,1.62029776,105280.0,105270.0,0.01789349]
[1749883167999,1.62029776,105280.0,105270.0,9.044e-05]
[1749883168203,1.62029776,105280.0,105270.0,0.01789349]
[1749883168458,1.62029776,105280.0,105270.0,0.01789355]
[1749883168669,1.62029776,105280.0,105270.0,0.04229044]
[1749883168877,1.62029776,105280.0,105270.0,0.06009355]
[1749883170138,1.62029776,105280.0,105270.0,0.04229044]
[1749883170368,1.62029776,105280.0,105270.0,0.06009355]
[1749883172896,1.62029776,105280.0,105270.0,0.04229044]
[1749883173098,1.62029776,105280.0,105270.0,0.06009355]
[1749883173308,1.62029776,105280.0,105270.0,0.04229044]
[1749883173949,1.62029776,105280.0,105270.0,0.06009355]
[1749883174173,1.62029776,105280.0,105270.0,0.04229044]
[1749883174391,1.62029776,105280.0,105270.0,0.06009355]
[1749883174827,1.71644698,105280.0,105270.0,0.01789355]
[1749883175482,1.71644698,105280.0,105270.0,0.06109355]
[1749883175691,1.62029776,105280.0,105270.0,0.04329044]
[1749883175934,1.62029776,105280.0,105270.0,0.06109351]
[1749883176145,1.62029776,105280.0,105270.0,0.0610935]
[1749883176352,1.19038292,105280.0,105270.0,0.0610935]
[1749883176568,1.19038292,105280.0,105270.0,0.04329044]
[1749883176777,1.19038292,105280.0,105270.0,0.06109523]
[1749883178592,1.19038292,105280.0,105270.0,0.06109522]
[1749883179290,1.19038292,105280.0,105270.0,0.04329044]
[1749883179478,1.19038292,105280.0,105270.0,0.06109522]
[1749883180313,1.19038292,105280.0,105270.0,0.06110457]
[1749883180530,1.19038292,105280.0,105270.0,0.04329044]
[1749883180771,1.19038292,105280.0,105270.0,0.06110457]
[1749883182103,1.19038292,105280.0,105270.0,0.04329044]
[1749883182551,1.19038292,105280.0,105270.0,0.06110457]
[1749883182762,1.19038292,105280.0,105270.0,0.04329044]
[1749883182973,1.19038292,105280.0,105270.0,0.06110457]
[1749883183180,1.19038292,105280.0,105270.0,0.04329044]
[1749883183388,1.19038292,105280.0,105270.0,0.06110457]
[1749883183621,1.19038292,105280.0,105270.0,0.04329044]
[1749883184036,1.19038292,105280.0,105270.0,0.06110457]
[1749883184250,1.19038292,105280.0,105270.0,0.04329044]
[1749883184695,1.19038292,105280.0,105270.0,0.06110457]
[1749883185783,1.19038292,105280.0,105270.0,0.04329044]
[1749883186005,1.19038292,105280.0,105270.0,0.06110457]
[1749883186636,1.19038292,105280.0,105270.0,0.04329044]
[1749883186842,1.19038292,105280.0,105270.0,0.06110457]
[1749883187078,0.76046808,105280.0,105270.0,0.06110457]
[1749883187290,1.19038292,105280.0,105270.0,0.06110457]
[1749883188020,1.62029776,105280.0,105270.0,0.06110457]
[1749883189511,1.62029776,105280.0,105270.0,0.04329044]
[1749883189764,1.62029776,105280.0,105270.0,0.06110457]
[1749883190001,1.62029776,105280.0,105270.0,0.04329044]
[1749883190244,1.62029776,105280.0,105270.0,0.06110457]
[1749883190487,1.62029776,105280.0,105270.0,0.04329044]
[1749883190730,1.62029776,105280.0,105270.0,0.06110457]
[1749883191430,1.71644698,105280.0,105270.0,0.04329044]
[1749883191642,1.71644698,105280.0,105270.0,0.03920457]
[1749883191864,1.71644698,105280.0,105270.0,0.02139044]
[1749883192631,1.71644698,105280.0,105270.0,0.03920457]
[1749883192863,1.71644698,105280.0,105270.0,9.044e-05]
[1749883193079,1.71644698,105280.0,105270.0,0.01790457]
[1749883193302,1.71644698,105280.0,105270.0,9.044e-05]
[1749883193710,1.71644698,105280.0,105270.0,0.01790576]
[1749883194135,1.71644698,105280.0,105270.0,9.044e-05]
[1749883194336,1.71644698,105280.0,105270.0,0.01790576]
[1749883195008,1.71644698,105280.0,105270.0,9.044e-05]
[1749883195225,1.71644698,105280.0,105270.0,0.01790576]
[1749883195852,1.96732874,105280.0,105270.0,0.01790576]
[1749883196054,2.01008768,105280.0,105270.0,0.01790581]
[1749883196265,2.01008768,105280.0,105270.0,0.01790583]
[1749883196695,2.01008768,105280.0,105270.0,0.01790584]
[1749883196902,2.01008768,105280.0,105270.0,0.01790501]
[1749883197480,2.01008768,105280.0,105270.0,9.044e-05]
[1749883197683,2.01008768,105280.0,105270.0,0.01790501]
[1749883197914,2.01008768,105280.0,105270.0,9.044e-05]
[1749883198108,2.01008768,105280.0,105270.0,0.01790501]
[1749883198947,2.05358768,105280.0,105270.0,0.01790501]
[1749883199072,2.05358768,105280.0,105270.0,9.044e-05]
[1749883199273,2.05358768,105280.0,105270.0,0.01790547]
[1749883199474,2.05358768,105280.0,105270.0,9.044e-05]
[1749883199713,2.05358768,105280.0,105270.0,0.01790547]
[1749883199874,2.03248768,105280.0,105270.0,0.01790547]
[1749883200509,2.01008768,105280.0,105270.0,9.044e-05]
[1749883200705,2.01008768,105280.0,105270.0,0.01790547]
[1749883200995,2.01008768,105280.0,105270.0,9.044e-05]
[1749883201176,2.01008768,105280.0,105270.0,0.01790547]
[1749883202465,2.01008768,105280.0,105270.0,9.044e-05]
[1749883202672,2.01008768,105280.0,105270.0,0.01790547]
[1749883203367,2.49918768,105280.0,105270.0,9.044e-05]
[1749883203571,2.49918768,105280.0,105270.0,0.01790547]
[1749883203773,2.88268768,105280.0,105270.0,0.01790547]
[1749883203987,2.88268768,105280.0,105270.0,0.01790564]
[1749883204388,2.88268768,105280.0,105270.0,0.01790583]
[1749883204593,2.88268768,105280.0,105270.0,9.044e-05]
[1749883204831,2.88268768,105280.0,105270.0,0.01790583]
[1749883205037,2.93960551,105280.0,105270.0,9.044e-05]
[1749883205446,2.91122068,105280.0,105270.0,9.044e-05]
[1749883210447,2.71658068,105280.0,105270.0,9.044e-05]
[1749883210659,2.77145146,105280.0,105270.0,9.044e-05]
[1749883211490,2.57693146,105280.0,105270.0,9.044e-05]
[1749883211689,2.77145146,105280.0,105270.0,9.044e-05]
[1749883220642,1.71710178,105280.0,105270.0,9.044e-05]
[1749883220864,2.77141146,105280.0,105270.0,9.044e-05]
[1749883221319,2.86756068,105280.0,105270.0,0.02079044]
[1749883221485,2.77141146,105280.0,105270.0,0.04179044]
[1749883224839,2.74865252,105280.0,105270.0,0.04179044]
[1749883225045,2.77138072,105280.0,105270.0,0.04179044]
[1749883225482,2.61682072,105280.0,105270.0,0.04179044]
[1749883225696,2.77138072,105280.0,105270.0,0.04179044]
[1749883226978,2.74865252,105280.0,105270.0,0.04179044]
[1749883227808,2.75990322,105280.0,105270.0,0.04179044]
[1749883228142,2.78263707,105280.0,105270.0,0.04179044]
[1749883239432,1.92280739,105280.0,105270.0,0.04179044]
[1749883239642,2.78263707,105280.0,105270.0,0.04179044]
[1749883244355,2.78263707,105280.0,105270.0,0.05960607]
[1749883245787,2.78263707,105280.0,105270.0,0.04179044]
[1749883246407,2.78263707,105280.0,105270.0,0.05960607]
[1749883246964,2.78263707,105280.0,105270.0,0.04179044]
[1749883247171,2.78263707,105280.0,105270.0,0.05960607]
[1749883252815,2.78263707,105280.0,105270.0,0.04179044]
[1749883253481,2.78263707,105280.0,105270.0,0.05960607]
[1749883253865,2.78263707,105280.0,105270.0,0.05960686]
[1749883254518,2.78263707,105280.0,105270.0,0.04179044]
[1749883254696,2.78263707,105280.0,105270.0,0.05960686]
[1749883255057,2.78263707,105280.0,105270.0,0.04179044]
[1749883255630,2.78263707,105280.0,105270.0,0.05960686]
[1749883256080,2.78263707,105280.0,105270.0,0.05960685]
[1749883256488,2.78263707,105280.0,105270.0,0.04179044]
[1749883256660,2.78263707,105280.0,105270.0,0.05960685]
[1749883257170,2.78263707,105280.0,105270.0,0.04179044]
[1749883257669,2.78263707,105280.0,105270.0,0.05960685]
[1749883258459,2.78263707,105280.0,105270.0,0.04179044]
[1749883262112,2.78263707,105280.0,105270.0,9.044e-05]
[1749883262755,2.86889524,105280.0,105270.0,9.044e-05]
[1749883263004,2.86889524,105280.0,105250.0,0.11721794]
[1749883263005,0.42900563,105260.0,105250.0,0.11721794]
[1749883263221,1.00811179,105260.0,105250.0,0.13502908]
[1749883263434,1.00811179,105260.0,105250.0,0.13502922]
[1749883263654,1.03664779,105260.0,105250.0,0.13502923]
[1749883264082,0.21856775,105230.0,105220.0,0.51514197]
[1749883264307,0.69782558,105230.0,105220.0,0.53295408]
[1749883264519,0.68832322,105230.0,105220.0,0.34996382]
[1749883264725,0.68832322,105230.0,105220.0,0.35361973]
[1749883265144,0.68832322,105230.0,105220.0,0.35361981]
[1749883265326,0.71694793,105230.0,105220.0,0.36312325]
[1749883265585,0.71694793,105230.0,105220.0,0.36317087]
[1749883266099,0.71694793,105230.0,105220.0,0.37417087]
[1749883266311,0.71694793,105230.0,105220.0,0.38367424]
[1749883266523,0.71694793,105230.0,105220.0,0.39067424]
[1749883267143,0.71694793,105230.0,105220.0,0.35516392]
[1749883267320,0.71694793,105230.0,105220.0,0.51314758]
[1749883267566,0.71694793,105230.0,105220.0,0.51314774]
[1749883267766,0.71694793,105230.0,105220.0,0.52214774]
[1749883267951,0.71694793,105230.0,105220.0,0.52214776]
[1749883268201,0.71694793,105230.0,105220.0,0.36766776]
[1749883268411,0.71694793,105230.0,105220.0,0.5043348]
[1749883268611,0.71694793,105230.0,105220.0,0.36766776]
[1749883268815,0.71694793,105230.0,105220.0,0.52214776]
[1749883269247,0.71694793,105230.0,105220.0,0.53165094]
[1749883269464,0.28703309,105230.0,105220.0,0.53165094]
[1749883269671,0.28703309,105230.0,105220.0,0.53165096]
[1749883269878,0.28703309,105230.0,105220.0,0.51383833]
[1749883270272,0.29643631,105230.0,105220.0,0.53165096]
[1749883270622,0.29643631,105230.0,105220.0,0.51383833]
[1749883270844,0.29643631,105230.0,105220.0,0.53165096]
[1749883271099,0.29643631,105230.0,105220.0,0.5316586]
[1749883271305,0.29643631,105230.0,105220.0,0.51383833]
[1749883271503,0.29643631,105230.0,105220.0,0.5316586]
[1749883272507,0.29643631,105230.0,105220.0,0.45604066]
[1749883272885,0.29643631,105230.0,105220.0,0.43822039]
[1749883273136,0.29643631,105230.0,105220.0,0.45604066]
[1749883273366,0.29643631,105230.0,105220.0,0.43822039]
[1749883273821,0.29643631,105230.0,105220.0,0.4655441]
[1749883274264,0.27743078,105230.0,105220.0,0.4655441]
[1749883274455,0.27743078,105230.0,105220.0,0.44772383]
[1749883274635,0.27743078,105230.0,105220.0,0.56169332]
[1749883274854,0.27743078,105230.0,105220.0,0.52486608]
[1749883274982,0.27743078,105230.0,105220.0,0.42871686]
[1749883275187,0.27743078,105230.0,105220.0,0.44653735]
[1749883275590,0.27743078,105230.0,105220.0,0.44653742]
[1749883275802,0.27743078,105230.0,105220.0,0.45604086]
[1749883276010,0.27743078,105230.0,105220.0,0.44653742]
[1749883276237,0.27743078,105230.0,105220.0,0.27423686]
[1749883276451,0.27743078,105230.0,105220.0,0.45604106]
[1749883276677,0.27743078,105230.0,105220.0,0.42871686]
[1749883277128,0.27743078,105230.0,105220.0,0.44653753]
[1749883277548,0.27743078,105230.0,105220.0,0.42871686]
[1749883277766,0.27743078,105230.0,105220.0,0.44653753]
[1749883278828,0.27743078,105230.0,105220.0,0.42871686]
[1749883279032,0.27743078,105230.0,105220.0,0.44653753]
[1749883280224,0.27743078,105230.0,105220.0,0.42871686]
[1749883280827,0.27743078,105230.0,105220.0,0.44653753]
[1749883281537,0.27743078,105230.0,105220.0,0.44646091]
[1749883281751,0.27743078,105230.0,105220.0,0.42871686]
[1749883282163,0.27743078,105230.0,105220.0,0.44646091]
[1749883283316,0.70734562,105230.0,105220.0,0.44646095]
[1749883283532,0.70734562,105230.0,105220.0,0.44646096]
[1749883283810,0.70734562,105230.0,105220.0,0.44646097]
[1749883284014,0.27743078,105230.0,105220.0,0.42871686]
[1749883284214,0.26792779,105230.0,105220.0,0.41921324]
[1749883284640,0.69784263,105230.0,105220.0,0.43695739]
[1749883284844,0.69784263,105230.0,105220.0,0.4369574]
[1749883285376,0.50789249,105230.0,105220.0,0.4369574]
[1749883286659,0.50789249,105230.0,105220.0,0.42871695]
[1749883287071,0.50789249,105230.0,105220.0,0.44646111]
[1749883287482,0.07797765,105230.0,105220.0,0.44646111]
[1749883287896,0.07797765,105230.0,105220.0,0.52486617]
[1749883288106,0.07797765,105230.0,105220.0,0.54261033]
[1749883288307,0.07797765,105230.0,105220.0,0.42871695]
[1749883288709,0.08749848,105230.0,105220.0,0.44646116]
[1749883289247,0.11646606,105230.0,105220.0,0.44646116]
[1749883290117,0.11646606,105230.0,105220.0,0.42871695]
[1749883290730,0.11646606,105230.0,105220.0,0.44653778]
[1749883290929,0.11646606,105230.0,105220.0,0.42871695]
[1749883291152,0.11646606,105230.0,105220.0,0.44653778]
[1749883291357,0.11646606,105230.0,105220.0,0.42871695]
[1749883291559,0.11646606,105230.0,105220.0,0.44653778]
[1749883291698,0.11646606,105230.0,105220.0,0.42871695]
[1749883291894,0.11646606,105230.0,105220.0,0.44653778]
[1749883292105,0.11646606,105230.0,105220.0,0.42871695]
[1749883292320,0.5463809,105230.0,105220.0,0.42753027]
[1749883292513,0.5463409,105230.0,105220.0,0.41921324]
[1749883292717,0.5463409,105230.0,105220.0,0.43703408]
[1749883292943,0.5463409,105230.0,105220.0,0.44653778]
[1749883293422,0.5463409,105230.0,105220.0,0.42871695]
[1749883293592,0.5463409,105230.0,105220.0,0.44653778]
[1749883294213,0.5463409,105230.0,105220.0,0.29205778]
[1749883294416,0.5463409,105230.0,105220.0,0.44649778]
[1749883294619,0.5463409,105230.0,105220.0,0.44649784]
[1749883295193,0.5463409,105230.0,105220.0,0.42867695]
[1749883295392,0.5463409,105230.0,105220.0,0.41798644]
[1749883295602,0.5463409,105230.0,105220.0,0.42749073]
[1749883295810,0.5463409,105230.0,105220.0,0.27305073]
[1749883295988,0.5463409,105230.0,105220.0,0.05564762]
[1749883296254,0.94269012,105230.0,105220.0,0.22790949]
[1749883296456,0.98249012,105230.0,105220.0,0.22790987]
[1749883296999,0.98249012,105230.0,105220.0,0.22787183]
[1749883297230,0.94269012,105230.0,105220.0,0.22787183]
[1749883297408,0.98249012,105230.0,105220.0,0.22787183]
[1749883297630,0.98249012,105230.0,105220.0,0.21008762]
[1749883297854,0.98249012,105230.0,105220.0,0.22787183]
[1749883298666,0.85737332,105230.0,105220.0,0.21008762]
[1749883299335,0.85737332,105230.0,105220.0,0.22787183]
[1749883299543,0.85737332,105230.0,105220.0,0.21008762]
[1749883299742,0.85737332,105230.0,105220.0,0.22787183]
[1749883300572,0.85737332,105230.0,105220.0,0.21008762]
[1749883300769,0.85737332,105230.0,105220.0,0.22787183]
[1749883301247,0.85737332,105230.0,105220.0,0.21008762]
[1749883301456,0.85737332,105230.0,105220.0,0.22787183]
[1749883301890,0.85737332,105230.0,105220.0,0.21008762]
[1749883302096,0.85737332,105230.0,105220.0,0.22787183]
[1749883302531,0.81757332,105230.0,105220.0,0.22787183]
[1749883302986,0.85737332,105230.0,105220.0,0.22787177]
[1749883303448,0.85737332,105230.0,105220.0,0.22787176]
[1749883304202,0.85737332,105230.0,105220.0,0.21008762]
[1749883304583,0.85737332,105230.0,105220.0,0.22787176]
[1749883304941,0.81757332,105230.0,105220.0,0.22787176]
[1749883305123,0.85737332,105230.0,105220.0,0.22787176]
[1749883305344,0.85737332,105230.0,105220.0,0.05564762]
[1749883305535,0.85737332,105230.0,105220.0,0.21008762]
[1749883305735,0.85737332,105230.0,105220.0,0.22787176]
[1749883305944,0.85737332,105230.0,105220.0,0.21008762]
[1749883306179,0.85737332,105230.0,105220.0,0.22787176]
[1749883306650,0.85737332,105230.0,105220.0,0.21008762]
[1749883306856,0.85737332,105230.0,105220.0,0.22787176]
[1749883309940,0.85737332,105230.0,105220.0,0.21008762]
[1749883310167,0.85737332,105230.0,105220.0,0.22787176]
[1749883310502,0.85737332,105230.0,105220.0,0.21008762]
[1749883310707,0.85737332,105230.0,105220.0,0.22787176]
[1749883311087,0.85737332,105230.0,105220.0,0.21008762]
[1749883311939,0.85737332,105230.0,105220.0,0.22790992]
[1749883312316,0.85737332,105230.0,105220.0,0.21008762]
[1749883312516,0.85737332,105230.0,105220.0,0.22790992]
[1749883313267,0.85737332,105230.0,105220.0,0.21008762]
[1749883313268,1.15737332,105230.0,105220.0,0.21008762]
[1749883313611,1.15737332,105230.0,105220.0,0.22790992]
[1749883313960,1.15737332,105230.0,105220.0,0.07346992]
[1749883314098,1.15737332,105230.0,105220.0,0.22790992]
[1749883314301,1.15737332,105230.0,105220.0,0.21008762]
[1749883314503,1.15737332,105230.0,105220.0,0.22791]
[1749883314922,1.15737332,105230.0,105220.0,0.227909]
[1749883317202,0.81737332,105230.0,105220.0,0.227909]
[1749883317378,0.81737332,105230.0,105220.0,0.21008762]
[1749883317583,0.81737332,105230.0,105220.0,0.227909]
[1749883317787,0.81737332,105230.0,105220.0,0.21008762]
[1749883318170,0.51737332,105230.0,105220.0,0.227909]
[1749883318572,0.51737332,105230.0,105220.0,0.21008762]
[1749883318827,0.51737332,105230.0,105220.0,0.227909]
[1749883319501,0.51737332,105230.0,105220.0,0.21008762]
[1749883319867,0.51737332,105230.0,105220.0,0.227909]
[1749883320505,0.51737332,105230.0,105220.0,0.21008762]
[1749883320822,0.51737332,105230.0,105220.0,0.227909]
[1749883321025,0.51737332,105230.0,105220.0,0.21008762]
[1749883321450,0.51737332,105230.0,105220.0,0.227909]
[1749883321854,0.51737332,105230.0,105220.0,0.22791017]
[1749883322074,0.51737332,105230.0,105220.0,0.21008762]
[1749883322484,0.51737332,105230.0,105220.0,0.22791017]
[1749883322685,0.51737332,105230.0,105220.0,0.21008762]
[1749883323094,0.51737332,105230.0,105220.0,0.22791017]
[1749883323694,0.51737332,105230.0,105220.0,0.21008762]
[1749883323897,0.51737332,105230.0,105220.0,0.22791017]
[1749883324423,0.51737332,105230.0,105220.0,0.21008762]
[1749883324626,0.51737332,105230.0,105220.0,0.22791017]
[1749883325271,0.51737332,105230.0,105220.0,0.3174544]
[1749883325508,0.08741848,105230.0,105220.0,0.48970978]
[1749883325680,0.51733332,105230.0,105220.0,0.50753225]
[1749883325881,0.51733332,105230.0,105220.0,0.41798802]
[1749883326052,0.51733332,105230.0,105220.0,0.42749191]
[1749883326260,0.51733332,105230.0,105220.0,0.40966944]
[1749883326676,0.51733332,105230.0,105220.0,0.42749291]
[1749883326889,0.51733332,105230.0,105220.0,0.40966944]
[1749883327086,0.51733332,105230.0,105220.0,0.42749291]
[1749883327291,0.51733332,105230.0,105220.0,0.40966944]
[1749883327555,0.51733332,105230.0,105220.0,0.42749291]
[1749883327991,0.51733332,105230.0,105220.0,0.43699662]
[1749883328714,0.51733332,105230.0,105220.0,0.41917315]
[1749883328947,0.51733332,105230.0,105220.0,0.43699662]
[1749883329160,0.51733332,105230.0,105220.0,0.40966944]
[1749883330228,0.51733332,105230.0,105220.0,0.43699558]
[1749883330670,0.51733332,105230.0,105220.0,0.41917324]
[1749883330877,0.51733332,105230.0,105220.0,0.43699558]
[1749883331231,0.51733332,105230.0,105220.0,0.41917324]
[1749883331448,0.51733332,105230.0,105220.0,0.43699557]
[1749883333201,0.51733332,105230.0,105220.0,0.41917324]
[1749883333362,0.51733332,105230.0,105220.0,0.43699439]
[1749883334021,0.51733332,105230.0,105220.0,0.41917324]
[1749883334249,0.51733332,105230.0,105220.0,0.43699402]
[1749883334666,0.51733332,105230.0,105220.0,0.41917324]
[1749883334872,0.51733332,105230.0,105220.0,0.43699402]
[1749883335730,0.51733332,105230.0,105220.0,0.41917324]
[1749883335951,0.51733332,105230.0,105220.0,0.43699402]
[1749883337090,0.51733332,105230.0,105220.0,0.41917324]
[1749883337318,0.51733332,105230.0,105220.0,0.43699402]
[1749883337738,0.51733332,105230.0,105220.0,0.41917324]
[1749883337939,0.51733332,105230.0,105220.0,0.43699402]
[1749883339012,0.51733332,105230.0,105220.0,0.43699101]
[1749883339204,0.51733332,105230.0,105220.0,0.41917324]
[1749883339425,0.51733332,105230.0,105220.0,0.43699101]
[1749883340261,0.51733332,105230.0,105220.0,0.41917324]
[1749883340408,0.51733332,105230.0,105220.0,0.43699101]
[1749883340814,0.51733332,105230.0,105220.0,0.41917324]
[1749883341052,0.51733332,105230.0,105220.0,0.42867695]
[1749883341586,0.51733332,105230.0,105220.0,0.44649472]
[1749883341987,0.51733332,105230.0,105220.0,0.42867695]
[1749883342192,0.51733332,105230.0,105220.0,0.44649472]
[1749883342395,0.51733332,105230.0,105220.0,0.42867695]
[1749883343034,0.51733332,105230.0,105220.0,0.44649472]
[1749883343243,0.51733332,105230.0,105220.0,0.42867695]
[1749883343643,0.51733332,105230.0,105220.0,0.44649472]
[1749883343798,0.47757332,105230.0,105220.0,0.45599834]
[1749883344157,0.49657903,105230.0,105220.0,0.45599832]
[1749883344364,0.53633903,105230.0,105220.0,0.44768401]
[1749883344569,0.53633903,105230.0,105220.0,0.46550153]
[1749883345269,0.00952083,105230.0,105220.0,0.99156559]
[1749883345472,0.00950218,105230.0,105220.0,0.99156478]
[1749883345667,0.05876445,105230.0,105220.0,0.99156471]
[1749883345873,0.05876445,105230.0,105220.0,0.97374744]
[1749883346079,0.0682669,105230.0,105220.0,0.99824528]
[1749883346281,0.05876445,105230.0,105220.0,0.99824528]
[1749883346547,0.05876445,105230.0,105220.0,0.98042867]
[1749883346758,0.05876445,105230.0,105220.0,1.05519637]
[1749883346934,0.06826681,105230.0,105220.0,1.05519622]
[1749883347142,0.06826681,105230.0,105220.0,1.0485152]
[1749883347342,0.05876445,105230.0,105220.0,1.03738022]
[1749883347917,0.21854742,105240.0,105230.0,0.25946775]
[1749883348120,0.25830742,105240.0,105230.0,0.25946775]
[1749883348361,0.25830742,105240.0,105230.0,0.27728285]
[1749883348577,0.25830742,105240.0,105230.0,0.26614841]
[1749883348778,0.25830742,105240.0,105230.0,0.26614842]
[1749883348980,0.25830742,105240.0,105230.0,0.25946775]
[1749883349172,0.26776781,105240.0,105230.0,0.26346775]
[1749883349391,0.26776781,105240.0,105230.0,0.29496367]
[1749883349726,0.26776781,105240.0,105230.0,0.27714845]
[1749883350135,0.26776781,105240.0,105230.0,0.27046775]
[1749883350349,0.26776781,105240.0,105230.0,0.28828297]
[1749883350788,0.26776781,105240.0,105230.0,0.27046775]
[1749883350980,0.26776781,105240.0,105230.0,0.28828297]
[1749883351521,0.26776781,105240.0,105230.0,0.27714845]
[1749883351736,0.26776781,105240.0,105230.0,0.29949861]
[1749883351889,0.05872193,105240.0,105230.0,0.75390937]
[1749883352142,0.07776625,105240.0,105230.0,0.29949861]
[1749883352382,0.07776625,105240.0,105230.0,0.32399426]
[1749883352570,0.06826444,105240.0,105230.0,0.30617924]
[1749883352810,0.06826453,105240.0,105230.0,0.32399425]
[1749883353027,0.06826453,105240.0,105230.0,0.32399426]
[1749883353236,0.05876281,105240.0,105230.0,0.32399426]
[1749883353451,0.05876281,105240.0,105230.0,0.32399425]
[1749883353853,0.00950082,105250.0,105240.0,0.21854724]
[1749883354079,0.06822228,105250.0,105240.0,0.54339155]
[1749883354297,0.69766196,105250.0,105240.0,0.53671078]
[1749883354505,0.69766196,105250.0,105240.0,0.5433913]
[1749883354708,0.07772337,105250.0,105240.0,0.54339121]
[1749883354919,0.69766196,105250.0,105240.0,0.5177077]
[1749883355122,0.69766196,105250.0,105240.0,0.43826262]
[1749883355538,0.7150857,105250.0,105240.0,0.43826257]
[1749883355736,0.7160857,105250.0,105240.0,0.43158205]
[1749883355938,0.7160857,105250.0,105240.0,0.43826257]
[1749883356631,0.7160857,105250.0,105240.0,0.41376733]
[1749883357000,0.7160857,105250.0,105240.0,0.43826257]
[1749883357204,0.7160857,105250.0,105240.0,0.43153924]
[1749883357827,0.7160857,105250.0,105240.0,0.41376733]
[1749883358523,0.7160857,105250.0,105240.0,0.42043179]
[1749883358684,0.7160857,105250.0,105240.0,0.43820369]
[1749883358896,0.7160857,105250.0,105240.0,0.42043179]
[1749883359104,0.7160857,105250.0,105240.0,0.43820369]
[1749883359303,0.7160857,105250.0,105240.0,0.43153922]
[1749883359507,0.7160857,105250.0,105240.0,0.43820368]
[1749883360298,0.7160857,105250.0,105240.0,0.42043179]
[1749883360497,0.7160857,105250.0,105240.0,0.43820368]
[1749883360698,0.67808233,105250.0,105240.0,0.42203759]
[1749883360906,0.67808233,105250.0,105240.0,0.41803759]
[1749883361118,0.67808233,105250.0,105240.0,0.42470205]
[1749883361556,0.67808233,105250.0,105240.0,0.51257864]
[1749883361557,0.26716922,105250.0,105240.0,0.51257864]
[1749883361756,0.69708406,105250.0,105240.0,0.53034399]